bitfinex-derivatives/quotes_BTCF0:USTF0_20230702
["timestamp","ask_amount","ask_price","bid_price","bid_amount"]
[1688310170772,0.174698,30616.0,30615.0,1.39637421]
[1688310174085,0.174698,30616.0,30615.0,1.37752476]
[1688310177880,0.19354745,30616.0,30615.0,1.37752476]
[1688310178273,0.19354745,30616.0,30615.0,1.37165537]
[1688310178474,0.17854745,30616.0,30615.0,1.37752476]
[1688310178684,0.17854745,30616.0,30615.0,1.01672476]
[1688310180380,0.17854745,30616.0,30615.0,0.99712676]
[1688310181392,0.17854745,30616.0,30615.0,1.01672476]
[1688310181794,0.159698,30616.0,30615.0,1.01672476]
[1688310182093,0.159698,30616.0,30615.0,1.03557421]
[1688310183803,0.159698,30616.0,30615.0,1.01672476]
[1688310185482,0.159698,30616.0,30615.0,1.03557421]
[1688310185680,0.159698,30616.0,30615.0,1.39637421]
[1688310186490,0.159698,30616.0,30615.0,1.46142856]
[1688310187096,0.159698,30616.0,30615.0,1.39637421]
[1688310187295,0.159698,30616.0,30615.0,1.46142856]
[1688310188393,0.1406,30618.0,30615.0,1.63515574]
[1688310188695,0.1406,30618.0,30617.0,0.20558337]
[1688310188899,0.1406,30618.0,30617.0,0.22518037]
[1688310189195,0.1406,30618.0,30617.0,0.25287492]
[1688310192289,0.1406,30618.0,30617.0,0.61367492]
[1688310192794,0.16823809,30620.0,30617.0,0.61427492]
[1688310192996,0.16823809,30620.0,30619.0,0.160796]
[1688310193493,0.20668254,30620.0,30619.0,0.16376974]
[1688310193696,0.20668254,30620.0,30619.0,0.16963913]
[1688310193888,0.20668254,30620.0,30619.0,0.48113913]
[1688310194087,0.18783309,30620.0,30619.0,0.48113913]
[1688310198100,0.18783309,30620.0,30619.0,0.49998858]
[1688310199400,0.00048992,30620.0,30619.0,0.86018858]
[1688310199700,0.00048992,30620.0,30619.0,0.95479637]
[1688310199902,0.06531,30625.0,30619.0,1.00919188]
[1688310200098,0.06531,30625.0,30624.0,0.502]
[1688310200305,0.27845914,30626.0,30624.0,0.521593]
[1688310200505,0.25886714,30626.0,30625.0,0.16591884]
[1688310200802,0.1412,30626.0,30625.0,0.18551084]
[1688310200992,0.1412,30626.0,30625.0,0.50181084]
[1688310201193,0.16742479,30626.0,30625.0,0.50181084]
[1688310201701,0.18701579,30626.0,30625.0,0.50181084]
[1688310202590,0.18701579,30626.0,30625.0,0.36061084]
[1688310205008,0.160791,30626.0,30625.0,0.36061084]
[1688310208795,0.1412,30626.0,30625.0,0.36061084]
[1688310209206,0.1412,30626.0,30625.0,0.50181084]
[1688310209506,0.56126479,30629.0,30625.0,0.50181084]
[1688310209708,0.56126479,30629.0,30628.0,0.15989]
[1688310210099,0.56126479,30629.0,30628.0,0.17873945]
[1688310210406,0.14577561,30629.0,30628.0,0.18460884]
[1688310212712,0.14517561,30629.0,30628.0,0.04430884]
[1688310212912,0.16476561,30629.0,30628.0,0.04430884]
[1688310214513,0.16476561,30629.0,30628.0,0.02545939]
[1688310214909,0.16476561,30629.0,30628.0,0.04430884]
[1688310217017,0.16476561,30629.0,30628.0,0.40510884]
[1688310217213,0.14517561,30629.0,30628.0,0.40510884]
[1688310217521,0.14517561,30629.0,30628.0,0.54630884]
[1688310217522,0.01957561,30629.0,30628.0,0.54630884]
[1688310219119,0.1412,30631.0,30628.0,0.54630884]
[1688310219323,0.1412,30631.0,30630.0,0.1412]
[1688310219523,0.1412,30631.0,30630.0,0.160789]
[1688310219924,0.1412,30631.0,30630.0,0.18550784]
[1688310222735,0.159487,30633.0,30630.0,0.54630784]
[1688310223036,0.159487,30633.0,30632.0,0.160788]
[1688310223534,0.159487,30633.0,30632.0,0.16665739]
[1688310224253,0.159487,30633.0,30632.0,0.18550684]
[1688310226732,0.16514559,30633.0,30632.0,0.18550684]
[1688310227936,0.18399504,30633.0,30632.0,0.019588]
[1688310229232,0.16514559,30633.0,30632.0,0.03843745]
[1688310229728,0.18337528,30633.0,30632.0,0.03843745]
[1688310229933,0.16514559,30633.0,30632.0,0.019588]
[1688310230241,0.20222473,30633.0,30632.0,0.019588]
[1688310230839,0.20222473,30633.0,30630.0,0.419564]
[1688310231032,0.1412,30631.0,30630.0,0.419564]
[1688310231228,0.521588,30631.0,30628.0,0.02007869]
[1688310231440,0.1412,30629.0,30628.0,0.02007869]
[1688310231634,0.16079,30629.0,30628.0,0.02007869]
[1688310231836,0.16650257,30629.0,30628.0,0.02594808]
[1688310232042,0.16650257,30629.0,30628.0,0.02007869]
[1688310232241,0.16650257,30629.0,30628.0,0.38087869]
[1688310234244,0.14691257,30629.0,30628.0,0.38674808]
[1688310234433,0.00571257,30629.0,30628.0,0.54589753]
[1688310241749,0.00571257,30629.0,30628.0,0.61083708]
[1688310242958,0.1401,30631.0,30628.0,0.61083708]
[1688310243152,0.00570889,30629.0,30628.0,0.47207522]
[1688310243357,0.1401,30631.0,30628.0,0.61267522]
[1688310243555,0.1401,30631.0,30630.0,0.1412]
[1688310243853,0.1401,30631.0,30630.0,0.18550784]
[1688310245958,0.14581022,30631.0,30630.0,0.18550784]
[1688310248455,0.16539822,30631.0,30630.0,0.18550784]
[1688310252654,0.16609822,30631.0,30630.0,0.18550784]
[1688310254456,0.18494767,30631.0,30630.0,0.019589]
[1688310254659,0.18494767,30631.0,30630.0,0.160789]
[1688310255662,0.18494767,30631.0,30630.0,0.16665839]
[1688310255960,0.18494767,30631.0,30630.0,0.160789]
[1688310256855,0.16609822,30631.0,30630.0,0.16665839]
[1688310257650,0.16609822,30631.0,30630.0,0.160789]
[1688310258455,0.18494767,30631.0,30630.0,0.160789]
[1688310259054,0.20317736,30631.0,30630.0,0.160789]
[1688310259660,0.18494767,30631.0,30630.0,0.160789]
[1688310259862,0.20317736,30631.0,30630.0,0.160789]
[1688310260763,0.18494767,30631.0,30630.0,0.160789]
[1688310261362,0.20317736,30631.0,30630.0,0.160789]
[1688310262757,0.20317736,30631.0,30630.0,0.019589]
[1688310263167,0.20317736,30631.0,30628.0,0.56682924]
[1688310263353,0.1412,30629.0,30627.0,0.06493955]
[1688310263553,0.16650963,30628.0,30626.0,0.08453055]
[1688310263754,0.1408,30627.0,30626.0,0.08453055]
[1688310263962,0.19747014,30627.0,30626.0,0.019591]
[1688310264263,0.52959005,30627.0,30626.0,0.019591]
[1688310264657,0.52959005,30627.0,30626.0,0.08453055]
[1688310264861,0.52959005,30627.0,30626.0,0.019591]
[1688310272570,0.52959005,30627.0,30624.0,0.11392155]
[1688310272869,0.1412,30625.0,30624.0,0.189582]
[1688310273076,0.160792,30625.0,30624.0,0.189582]
[1688310273265,0.17964145,30625.0,30624.0,0.189582]
[1688310273465,0.19787114,30625.0,30624.0,0.189582]
[1688310274959,0.19787114,30625.0,30623.0,0.08502132]
[1688310275162,0.19787114,30624.0,30623.0,0.00048977]
[1688310275559,0.19787114,30624.0,30623.0,0.00370694]
[1688310277164,0.19787114,30624.0,30623.0,0.02329994]
[1688310277359,0.19787114,30624.0,30623.0,0.02320153]
[1688310280468,0.19787114,30624.0,30623.0,0.00360853]
[1688310285067,0.160792,30624.0,30623.0,0.02245798]
[1688310285268,0.160792,30624.0,30623.0,0.04205098]
[1688310285477,0.019592,30624.0,30623.0,0.18325098]
[1688310285672,0.18908,30626.0,30623.0,0.18912037]
[1688310285869,0.18908,30626.0,30625.0,0.521592]
[1688310286069,0.18908,30626.0,30625.0,0.52746139]
[1688310286271,0.1401,30626.0,30625.0,0.52746139]
[1688310286469,0.1401,30626.0,30625.0,0.54631084]
[1688310286971,0.058776,30627.0,30625.0,0.54631084]
[1688310287174,0.058776,30627.0,30626.0,0.15944945]
[1688310287369,0.058776,30627.0,30626.0,0.18490984]
[1688310289184,0.0004898,30628.0,30626.0,0.54570984]
[1688310289369,0.0004898,30628.0,30627.0,0.18520884]
[1688310290884,0.00617685,30628.0,30627.0,0.18520884]
[1688310292587,0.065292,30632.0,30627.0,0.25014839]
[1688310292778,0.019587,30633.0,30632.0,0.019587]
[1688310292973,0.019587,30633.0,30632.0,0.159887]
[1688310293173,0.02882872,30633.0,30632.0,0.159887]
[1688310293369,0.02882872,30633.0,30632.0,0.18460584]
[1688310294285,0.02882872,30633.0,30632.0,0.48980584]
[1688310294784,0.00924172,30633.0,30632.0,0.18460584]
[1688310295091,0.52567433,30633.0,30629.0,0.02007868]
[1688310295400,0.160388,30630.0,30629.0,0.02007868]
[1688310296082,0.19746714,30630.0,30629.0,0.02007868]
[1688310300086,0.20108245,30630.0,30629.0,0.02007868]
[1688310300287,0.20108245,30630.0,30629.0,0.00048968]
[1688310300990,0.20108245,30630.0,30629.0,0.02007868]
[1688310300991,0.18285276,30630.0,30629.0,0.02007868]
[1688310301182,0.20108245,30630.0,30629.0,0.02007868]
[1688310301584,0.18285276,30630.0,30629.0,0.02007868]
[1688310302785,0.16400331,30630.0,30629.0,0.03892813]
[1688310303292,0.16400331,30630.0,30629.0,0.45999303]
[1688310304091,0.16400331,30630.0,30629.0,0.40559752]
[1688310304297,0.14441531,30630.0,30629.0,0.60119303]
[1688310304482,0.00361531,30630.0,30629.0,0.60119303]
[1688310304683,0.14371531,30630.0,30629.0,0.60119303]
[1688310305089,0.1401,30630.0,30629.0,0.60119303]
[1688310305285,0.14385821,30630.0,30629.0,0.60119303]
[1688310307195,0.00048968,30636.0,30631.0,0.05]
[1688310307500,0.00048968,30636.0,30635.0,0.882385]
[1688310307889,0.00048968,30636.0,30635.0,0.90710384]
[1688310308699,0.01812895,30636.0,30635.0,0.90710384]
[1688310309792,0.15822895,30636.0,30635.0,0.76590384]
[1688310312918,0.15822895,30636.0,30635.0,0.01389709]
[1688310313092,0.17320218,30636.0,30635.0,0.01389709]
[1688310313399,0.52828132,30636.0,30635.0,0.01389709]
[1688310314799,0.52288488,30636.0,30635.0,0.01389709]
[1688310318605,0.48580574,30636.0,30635.0,0.01389709]
[1688310318911,0.48580574,30636.0,30635.0,0.01976648]
[1688310319109,0.48580574,30636.0,30635.0,0.03861593]
[1688310320799,0.48935057,30636.0,30635.0,0.01389709]
[1688310321103,0.48935057,30636.0,30635.0,0.01976648]
[1688310322400,0.48935057,30636.0,30635.0,0.01389709]
[1688310323401,0.48935057,30636.0,30635.0,0.01976648]
[1688310323600,0.48935057,30636.0,30635.0,0.03861593]
[1688310324892,0.48935057,30636.0,30635.0,0.03274654]
[1688310325097,0.48935057,30636.0,30635.0,0.03861593]
[1688310326701,0.48935057,30636.0,30635.0,0.03274654]
[1688310327002,0.48935057,30636.0,30635.0,0.03861593]
[1688310327808,0.48935057,30636.0,30635.0,0.17981593]
[1688310328406,0.48935057,30636.0,30635.0,0.17394654]
[1688310330898,0.48935057,30636.0,30635.0,0.17981593]
[1688310331597,0.48935057,30636.0,30635.0,0.17394654]
[1688310332612,0.48935057,30636.0,30635.0,0.03274654]
[1688310332913,0.50820002,30636.0,30635.0,0.01389709]
[1688310334116,0.50820002,30636.0,30635.0,0.37469709]
[1688310334907,0.52642971,30636.0,30635.0,0.37469709]
[1688310335108,0.50820002,30636.0,30635.0,0.37469709]
[1688310336310,0.50820002,30636.0,30630.0,0.06483502]
[1688310336509,0.159488,30631.0,30629.0,0.8077977]
[1688310336712,0.48597914,30630.0,30629.0,0.42589719]
[1688310336902,0.50556814,30630.0,30629.0,0.44548619]
[1688310337307,0.50556814,30630.0,30629.0,0.38065117]
[1688310338212,0.48733845,30630.0,30629.0,0.38065117]
[1688310338411,0.50556814,30630.0,30629.0,0.38065117]
[1688310338615,0.48733845,30630.0,30629.0,0.38065117]
[1688310339010,0.50556814,30630.0,30629.0,0.38065117]
[1688310339712,0.48733845,30630.0,30629.0,0.38065117]
[1688310340308,0.50556814,30630.0,30629.0,0.38065117]
[1688310340807,0.48733845,30630.0,30629.0,0.38065117]
[1688310342821,0.468489,30630.0,30629.0,0.38065117]
[1688310345220,0.468489,30630.0,30629.0,0.39950062]
[1688310346419,0.468489,30630.0,30629.0,0.40537001]
[1688310346624,0.468489,30630.0,30629.0,0.39950062]
[1688310347012,0.468489,30630.0,30629.0,0.03870062]
[1688310349822,0.48671869,30630.0,30629.0,0.01985117]
[1688310350223,0.50486814,30630.0,30629.0,0.16105117]
[1688310350430,0.467789,30630.0,30629.0,0.16105117]
[1688310350923,0.47071074,30630.0,30629.0,0.16105117]
[1688310352326,0.48956019,30630.0,30629.0,0.16105117]
[1688310353829,0.47071074,30630.0,30629.0,0.16105117]
[1688310354325,0.47071074,30630.0,30629.0,0.16692056]
[1688310354525,0.47071074,30630.0,30629.0,0.16105117]
[1688310354831,0.14282174,30630.0,30629.0,0.17322056]
[1688310355124,0.1399,30630.0,30629.0,0.25690503]
[1688310355324,0.14286703,30630.0,30629.0,0.25690503]
[1688310356319,0.14286703,30630.0,30629.0,0.61770503]
[1688310356826,0.14286703,30630.0,30629.0,0.38065117]
[1688310356827,0.18170548,30630.0,30629.0,0.38065117]
[1688310357125,0.19993517,30630.0,30629.0,0.38065117]
[1688310358018,0.18170548,30630.0,30629.0,0.38065117]
[1688310359127,0.19993517,30630.0,30629.0,0.38065117]
[1688310359429,0.19993517,30630.0,30629.0,0.01985117]
[1688310360219,0.19993517,30630.0,30629.0,0.00026217]
[1688310362128,0.18170548,30630.0,30629.0,0.00026217]
[1688310362329,0.19993517,30630.0,30629.0,0.00026217]
[1688310364230,0.18170548,30630.0,30629.0,0.00026217]
[1688310364428,0.19993517,30630.0,30629.0,0.00026217]
[1688310364740,0.18170548,30630.0,30629.0,0.00026217]
[1688310367441,0.19993517,30630.0,30629.0,0.00026217]
[1688310367821,0.18170548,30630.0,30629.0,0.00026217]
[1688310368537,0.19993517,30630.0,30629.0,0.01985117]
[1688310369732,0.18170548,30630.0,30629.0,0.01985117]
[1688310370538,0.19993517,30630.0,30629.0,0.01985117]
[1688310373135,0.18170548,30630.0,30629.0,0.01985117]
[1688310373932,0.19993517,30630.0,30629.0,0.01985117]
[1688310374231,0.18170548,30630.0,30629.0,0.01985117]
[1688310374434,0.19993517,30630.0,30629.0,0.01985117]
[1688310374732,0.18170548,30630.0,30629.0,0.01985117]
[1688310375733,0.19993517,30630.0,30629.0,0.01985117]
[1688310380240,0.19993517,30630.0,30629.0,0.00026217]
[1688310381132,0.19993517,30630.0,30629.0,0.06509719]
[1688310383645,0.19993517,30630.0,30629.0,0.00026217]
[1688310386363,0.019593,30623.0,30619.0,0.13000812]
[1688310386544,0.019593,30623.0,30613.0,0.29408895]
[1688310386545,1.21693747,30620.0,30616.0,0.09750609]
[1688310386747,0.502,30617.0,30616.0,0.13005849]
[1688310386942,0.521597,30617.0,30615.0,0.019598]
[1688310387145,0.1406,30616.0,30615.0,0.019598]
[1688310387350,0.19701397,30616.0,30615.0,0.019598]
[1688310395955,0.19701397,30616.0,30615.0,0.03661925]
[1688310396856,0.55781397,30616.0,30615.0,0.03661925]
[1688310399551,0.55781397,30616.0,30615.0,0.01702125]
[1688310400056,0.55781397,30616.0,30613.0,0.06582194]
[1688310400247,0.380397,30616.0,30614.0,0.019599]
[1688310400456,0.1412,30615.0,30614.0,0.019599]
[1688310400758,0.11176189,30615.0,30614.0,0.03844845]
[1688310400955,0.019599,30615.0,30614.0,0.019599]
[1688310401256,0.17862869,30615.0,30614.0,0.019599]
[1688310401557,0.160399,30615.0,30614.0,0.019599]
[1688310401850,0.17898628,30615.0,30614.0,0.019599]
[1688310402841,0.19721597,30615.0,30613.0,0.00048994]
[1688310403152,0.52058728,30614.0,30613.0,0.00048994]
[1688310403357,0.54018628,30614.0,30613.0,0.01548994]
[1688310403662,0.55841597,30614.0,30613.0,0.01548994]
[1688310410964,0.55841597,30614.0,30613.0,0.03439441]
[1688310413066,0.54018628,30614.0,30613.0,0.03439441]
[1688310413267,0.521599,30614.0,30613.0,0.03439441]
[1688310413467,0.521599,30614.0,30613.0,0.01939441]
[1688310413767,0.55841597,30614.0,30613.0,0.01939441]
[1688310413969,0.54018628,30614.0,30613.0,0.01939441]
[1688310414466,0.54018628,30614.0,30613.0,0.03899441]
[1688310414968,0.058798,30616.0,30613.0,0.0448638]
[1688310415160,0.048999,30615.0,30614.0,0.3608]
[1688310415467,0.189799,30615.0,30614.0,0.37968156]
[1688310415669,0.189799,30615.0,30614.0,0.39853101]
[1688310416260,0.189799,30615.0,30614.0,0.41813001]
[1688310416667,0.189799,30615.0,30614.0,0.4363597]
[1688310417263,0.189799,30615.0,30614.0,0.41813001]
[1688310419470,0.189799,30615.0,30614.0,0.4363597]
[1688310421159,0.189799,30615.0,30614.0,0.41813001]
[1688310421362,0.019598,30616.0,30614.0,0.5775597]
[1688310421570,0.019598,30616.0,30615.0,0.37964945]
[1688310421871,0.160798,30616.0,30615.0,0.43634899]
[1688310428866,0.175798,30616.0,30615.0,0.43634899]
[1688310429771,0.175798,30616.0,30615.0,0.53390294]
[1688310431565,0.175798,30616.0,30615.0,0.78263474]
[1688310432168,0.175798,30616.0,30615.0,0.65259738]
[1688310435571,0.175798,30616.0,30615.0,0.78262395]
[1688310436173,0.175798,30616.0,30615.0,0.65259738]
[1688310437568,0.175798,30616.0,30615.0,0.78261684]
[1688310438481,0.160798,30616.0,30615.0,0.78261684]
[1688310439676,0.160798,30616.0,30615.0,0.43634899]
[1688310441481,0.160798,30616.0,30615.0,0.53385578]
[1688310445685,0.160798,30616.0,30615.0,0.43634899]
[1688310446585,0.160798,30616.0,30615.0,0.53385578]
[1688310447280,0.160798,30616.0,30615.0,0.43634899]
[1688310449678,0.5339583,30616.0,30613.0,0.00048994]
[1688310449880,0.1403,30614.0,30613.0,0.00048994]
[1688310450087,0.159899,30614.0,30613.0,0.00048994]
[1688310450289,0.1722593,30614.0,30613.0,0.01548994]
[1688310452986,0.1787593,30614.0,30613.0,0.01548994]
[1688310454883,0.166399,30614.0,30613.0,0.01548994]
[1688310455084,0.166399,30614.0,30613.0,0.03508994]
[1688310455788,0.1787593,30614.0,30613.0,0.03508994]
[1688310456794,0.1787593,30614.0,30613.0,0.01548994]
[1688310457489,0.1787593,30614.0,30613.0,0.029615]
[1688310459602,0.1722593,30614.0,30613.0,0.029615]
[1688310460188,0.19859376,30614.0,30613.0,0.029615]
[1688310460491,0.19859376,30614.0,30613.0,0.049215]
[1688310461095,0.19859376,30614.0,30613.0,0.034215]
[1688310463895,0.19859376,30614.0,30613.0,0.014615]
[1688310493218,0.18623346,30614.0,30613.0,0.014615]
[1688310493518,0.19859376,30614.0,30613.0,0.014615]
[1688310493721,0.05,30611.0,30608.0,0.3376]
[1688310494024,0.2824,30609.0,30607.0,0.3187]
[1688310494313,0.159903,30608.0,30607.0,0.3187]
[1688310494620,0.1722633,30608.0,30607.0,0.3187]
[1688310495617,0.1722633,30608.0,30607.0,0.6407]
[1688310498825,0.159903,30608.0,30607.0,0.6407]
[1688310499017,0.1722633,30608.0,30607.0,0.6407]
[1688310501632,0.1722633,30608.0,30607.0,0.65694503]
[1688310502125,0.159903,30608.0,30607.0,0.65694503]
[1688310502625,0.1722633,30608.0,30607.0,0.65694503]
[1688310503630,0.159903,30608.0,30607.0,0.65694503]
[1688310504625,0.1722633,30608.0,30607.0,0.65694503]
[1688310505132,0.159903,30608.0,30607.0,0.65694503]
[1688310505327,0.1722633,30608.0,30607.0,0.65694503]
[1688310505920,0.159903,30608.0,30607.0,0.65694503]
[1688310506119,0.1722633,30608.0,30607.0,0.65694503]
[1688310506315,0.159903,30608.0,30607.0,0.65694503]
[1688310506733,0.1722633,30608.0,30607.0,0.65694503]
[1688310507627,0.159903,30608.0,30607.0,0.65694503]
[1688310508044,0.159903,30608.0,30607.0,0.65677306]
[1688310508418,0.159903,30608.0,30607.0,0.68267606]
[1688310508419,0.10681909,30608.0,30607.0,0.68267606]
[1688310508626,0.1412,30608.0,30607.0,1.04347606]
[1688310509039,0.1412,30608.0,30607.0,1.0805552]
[1688310511618,0.160803,30608.0,30607.0,1.0805552]
[1688310512333,0.160803,30608.0,30607.0,1.4413552]
[1688310513334,0.1412,30608.0,30607.0,1.4413552]
[1688310513528,0.1412,30608.0,30607.0,1.4350552]
[1688310514739,0.160803,30608.0,30607.0,1.4350552]
[1688310522043,0.160803,30608.0,30607.0,1.50002505]
[1688310526149,0.160803,30608.0,30607.0,1.49388863]
[1688310530351,0.160803,30608.0,30607.0,1.41006933]
[1688310530561,0.160803,30608.0,30607.0,1.49395421]
[1688310531552,0.160803,30608.0,30607.0,1.42891878]
[1688310531764,0.1412,30608.0,30607.0,1.42891878]
[1688310533147,0.14103747,30608.0,30607.0,0.70731878]
[1688310533350,0.14103747,30608.0,30607.0,1.42891878]
[1688310534057,0.14103747,30608.0,30607.0,1.52642557]
[1688310536457,0.160802,30609.0,30607.0,1.66762557]
[1688310536658,0.160802,30609.0,30608.0,0.22585749]
[1688310536846,0.160802,30609.0,30608.0,0.27057496]
[1688310537047,0.1412,30609.0,30608.0,0.27057496]
[1688310540563,0.1412,30609.0,30608.0,0.26866427]
[1688310542762,0.1401,30610.0,30608.0,0.26866427]
[1688310542952,0.1401,30610.0,30609.0,0.1409]
[1688310543153,0.1401,30610.0,30609.0,0.20330746]
[1688310544559,0.1401,30610.0,30609.0,0.26836195]
[1688310544766,0.1401,30610.0,30609.0,0.98996195]
[1688310545466,0.159701,30610.0,30609.0,0.98996195]
[1688310545858,3.159701,30610.0,30609.0,0.98996195]
[1688310546057,3.27738495,30610.0,30609.0,0.98996195]
[1688310546971,3.29084525,30610.0,30609.0,0.81198281]
[1688310547152,3.27848495,30610.0,30609.0,0.81198281]
[1688310552570,3.29084525,30610.0,30609.0,0.74692832]
[1688310552770,3.27848495,30610.0,30609.0,0.74692832]
[1688310552969,3.29084525,30610.0,30609.0,0.74692832]
[1688310553172,3.29084525,30610.0,30609.0,0.02532832]
[1688310553367,3.29084525,30610.0,30609.0,0.74692832]
[1688310554063,3.29084525,30610.0,30609.0,0.81198281]
[1688310555474,3.27848495,30610.0,30609.0,0.81198281]
[1688310556063,3.27848495,30610.0,30609.0,0.09038281]
[1688310556272,3.29084525,30610.0,30609.0,0.81198281]
[1688310557673,3.27848495,30610.0,30609.0,0.81198281]
[1688310557974,3.29084525,30610.0,30609.0,0.81198281]
[1688310559574,3.29084525,30610.0,30609.0,0.74692832]
[1688310559970,3.29084525,30610.0,30609.0,0.81201942]
[1688310571986,3.29084525,30610.0,30609.0,0.83086887]
[1688310572486,3.27848495,30610.0,30609.0,0.83086887]
[1688310572684,3.29084525,30610.0,30609.0,0.83086887]
[1688310573187,3.29084525,30610.0,30609.0,0.81201942]
[1688310576398,3.29084525,30610.0,30609.0,0.74692832]
[1688310577103,3.27848495,30610.0,30609.0,0.74692832]
[1688310577303,3.27848495,30610.0,30609.0,0.74450366]
[1688310577603,3.29084525,30610.0,30609.0,0.74450366]
[1688310578307,3.27848495,30610.0,30609.0,0.74450366]
[1688310579108,3.29084525,30610.0,30609.0,0.74450366]
[1688310579907,3.27848495,30610.0,30609.0,0.74450366]
[1688310580205,3.29084525,30610.0,30609.0,0.741202]
[1688310580601,3.27848495,30610.0,30609.0,0.741202]
[1688310580806,3.29084525,30610.0,30609.0,0.741202]
[1688310582104,3.29084525,30610.0,30609.0,0.8062931]
[1688310582707,3.29084525,30610.0,30609.0,0.9465931]
[1688310584816,3.27848495,30610.0,30609.0,0.9465931]
[1688310585808,3.29084525,30610.0,30609.0,0.9465931]
[1688310586213,3.27848495,30610.0,30609.0,0.9465931]
[1688310586406,3.29084525,30610.0,30609.0,0.9465931]
[1688310589414,3.27848495,30610.0,30609.0,0.9465931]
[1688310589618,3.27848495,30610.0,30609.0,0.881502]
[1688310590009,3.29084525,30610.0,30609.0,0.881502]
[1688310591109,3.27848495,30610.0,30609.0,0.881502]
[1688310591615,3.29084525,30610.0,30609.0,0.881502]
[1688310591815,3.27848495,30610.0,30609.0,0.881502]
[1688310592701,3.27848495,30610.0,30609.0,0.741202]
[1688310593708,3.27848495,30610.0,30609.0,0.75943169]
[1688310593907,3.27848495,30610.0,30609.0,0.76005145]
[1688310594613,3.29084525,30610.0,30609.0,0.741202]
[1688310596516,3.27848495,30610.0,30609.0,0.741202]
[1688310597115,3.27848495,30610.0,30609.0,0.8062931]
[1688310597516,3.27848495,30610.0,30609.0,0.82514255]
[1688310598015,3.27848495,30610.0,30609.0,0.84337224]
[1688310598626,3.27848495,30610.0,30609.0,0.82514255]
[1688310600208,3.27848495,30610.0,30609.0,0.8062931]
[1688310604819,3.27848495,30610.0,30609.0,0.741202]
[1688310606023,3.28771766,30610.0,30609.0,0.741202]
[1688310606717,3.28771766,30610.0,30609.0,0.75943169]
[1688310606918,3.28771766,30610.0,30609.0,0.741202]
[1688310607522,3.30007796,30610.0,30609.0,0.741202]
[1688310607828,3.28771766,30610.0,30609.0,0.741202]
[1688310608036,3.26811666,30610.0,30609.0,0.8062931]
[1688310608320,3.12691666,30610.0,30609.0,0.97990879]
[1688310608715,3.12691666,30610.0,30609.0,1.01698793]
[1688310608910,3.12691666,30610.0,30609.0,0.91948114]
[1688310609319,3.12691666,30610.0,30609.0,1.01709093]
[1688310617229,3.12691666,30610.0,30609.0,0.91948114]
[1688310619723,3.12691666,30610.0,30609.0,0.19788114]
[1688310619922,3.12691666,30610.0,30609.0,0.91948114]
[1688310620526,3.12691666,30610.0,30609.0,0.94514066]
[1688310623531,3.12691666,30610.0,30609.0,0.22354066]
[1688310623925,3.12691666,30610.0,30609.0,0.94514066]
[1688310624125,3.12691666,30610.0,30609.0,1.04275045]
[1688310625436,0.92494473,30610.0,30609.0,1.04275045]
[1688310626237,0.80726078,30610.0,30609.0,1.04275045]
[1688310626934,0.80726078,30610.0,30609.0,1.023901]
[1688310627132,0.80726078,30610.0,30609.0,0.99128297]
[1688310628431,0.80726078,30610.0,30609.0,1.01013242]
[1688310633127,0.80726078,30610.0,30609.0,0.28853242]
[1688310633333,0.80726078,30610.0,30609.0,1.01013242]
[1688310634641,0.80726078,30610.0,30609.0,0.92691097]
[1688310634938,0.80726078,30610.0,30609.0,0.94514066]
[1688310635135,0.80726078,30610.0,30609.0,0.92691097]
[1688310635636,0.80726078,30610.0,30609.0,0.94514066]
[1688310636335,0.80726078,30610.0,30609.0,1.04275045]
[1688310638136,0.80726078,30610.0,30609.0,1.02452076]
[1688310638542,0.80726078,30610.0,30609.0,1.04275045]
[1688310638737,0.80726078,30610.0,30609.0,1.02452076]
[1688310640153,0.80726078,30610.0,30609.0,1.04275045]
[1688310640652,0.80162782,30610.0,30609.0,1.04275045]
[1688310641248,0.80162782,30610.0,30609.0,1.02452076]
[1688310641451,0.80162782,30610.0,30609.0,1.04275045]
[1688310642152,0.80162782,30610.0,30609.0,0.94514066]
[1688310643044,0.80162782,30610.0,30609.0,0.92691097]
[1688310644053,0.80162782,30610.0,30609.0,0.94514066]
[1688310646655,0.80162782,30610.0,30609.0,0.92691097]
[1688310647152,0.80162782,30610.0,30609.0,0.20531097]
[1688310647354,0.80162782,30610.0,30609.0,0.92691097]
[1688310647742,0.80162782,30610.0,30609.0,0.90806152]
[1688310648455,0.80162782,30610.0,30609.0,0.92691097]
[1688310649346,0.81398812,30610.0,30609.0,0.882402]
[1688310649545,0.80162782,30610.0,30609.0,0.882402]
[1688310649846,0.80162782,30610.0,30609.0,0.99886124]
[1688310652659,0.94282782,30610.0,30609.0,0.99886124]
[1688310652957,0.94282782,30610.0,30609.0,1.01709093]
[1688310653345,0.94282782,30610.0,30609.0,0.99886124]
[1688310657259,0.94282782,30610.0,30609.0,0.27726124]
[1688310657442,0.94282782,30610.0,30609.0,0.99886124]
[1688310658660,0.94282782,30610.0,30609.0,1.01709093]
[1688310658960,0.94282782,30610.0,30609.0,0.99886124]
[1688310662163,0.94282782,30610.0,30609.0,0.27726124]
[1688310662356,0.94282782,30610.0,30609.0,0.99886124]
[1688310663749,0.94282782,30610.0,30609.0,1.01709093]
[1688310663956,0.94282782,30610.0,30609.0,0.99886124]
[1688310665165,0.94282782,30610.0,30609.0,1.01709093]
[1688310667059,0.94282782,30610.0,30609.0,0.29549093]
[1688310667261,0.94282782,30610.0,30609.0,0.99886124]
[1688310668566,0.94282782,30610.0,30609.0,1.01709093]
[1688310668769,0.94282782,30610.0,30609.0,0.99886124]
[1688310670368,0.94282782,30610.0,30609.0,0.27726124]
[1688310670558,0.94282782,30610.0,30609.0,0.99886124]
[1688310672272,0.94282782,30610.0,30609.0,1.01709093]
[1688310672473,0.94282782,30610.0,30609.0,0.99886124]
[1688310673469,0.94282782,30610.0,30609.0,1.01709093]
[1688310678473,0.94282782,30610.0,30609.0,0.99886124]
[1688310678775,0.94282782,30610.0,30609.0,0.27726124]
[1688310679072,0.94282782,30610.0,30609.0,0.99886124]
[1688310680366,0.94282782,30610.0,30609.0,1.01709093]
[1688310680568,0.94282782,30610.0,30609.0,0.99886124]
[1688310681069,0.94282782,30610.0,30609.0,0.98001179]
[1688310681574,0.96242982,30610.0,30609.0,0.98001179]
[1688310684077,0.96242982,30610.0,30609.0,0.99886124]
[1688310685278,0.94282782,30610.0,30609.0,0.99886124]
[1688310686175,0.94282782,30610.0,30609.0,0.98001179]
[1688310686678,0.95518812,30610.0,30609.0,0.98001179]
[1688310687175,0.94282782,30610.0,30609.0,0.98001179]
[1688310687867,0.95518812,30610.0,30609.0,0.98001179]
[1688310688577,0.94282782,30610.0,30609.0,0.98001179]
[1688310689180,0.95518812,30610.0,30609.0,0.98001179]
[1688310689480,0.94282782,30610.0,30609.0,0.98001179]